bitfinex/quotes_ETHUSD_20250821
["timestamp","ask_amount","ask_price","bid_price","bid_amount"]
[1755790709738,0.02,4273.8,4273.5,2.33998312]
[1755790709887,0.02,4273.8,4273.6,0.02339947]
[1755790710092,0.02,4273.8,4273.7,10.20269283]
[1755790711291,0.02,4273.8,4273.7,12.11696038]
[1755790711634,0.02,4274.8,4273.7,12.11696038]
[1755790711635,0.02,4274.8,4274.7,5.99934545]
[1755790711811,0.02,4274.8,4274.7,12.21074545]
[1755790712016,0.02,4274.8,4274.7,5.7684]
[1755790712213,0.02,4274.8,4274.7,4.103]
[1755790712405,0.7676,4274.8,4274.4,4.104]
[1755790712605,0.7676,4274.8,4274.5,0.02339454]
[1755790712901,0.02,4274.8,4274.3,4.104]
[1755790713222,0.02,4274.8,4274.4,0.02339509]
[1755790713428,0.02,4274.8,4274.3,4.104]
[1755790713429,0.3,4274.5,4274.3,0.1757657]
[1755790713631,0.02,4274.8,4274.7,2.33934545]
[1755790713803,0.02,4274.8,4274.7,1.4188]
[1755790713998,0.02,4274.8,4274.7,5.5815389]
[1755790714216,0.02,4274.8,4274.7,2.7674]
[1755790714415,0.02,4274.8,4274.7,1.8]
[1755790714616,0.02,4274.8,4274.7,5.911]
[1755790715003,0.02,4274.8,4274.7,4.111]
[1755790716058,0.7676,4274.8,4274.7,4.111]
[1755790716350,0.7676,4274.8,4274.3,0.17822633]
[1755790716512,0.32,4274.8,4273.8,4.108]
[1755790716701,0.4476,4274.7,4273.8,4.108]
[1755790716908,0.3,4273.9,4273.8,4.108]
[1755790717104,0.7468,4273.9,4273.3,6.07980005]
[1755790717626,2.2435,4274.6,4273.3,6.07980005]
[1755790717827,0.22635,4274.6,4273.3,6.07980005]
[1755790718026,0.4435,4274.7,4273.3,6.07980005]
[1755790718240,0.4435,4274.7,4273.4,0.02340057]
[1755790718464,0.02,4274.8,4273.6,2.33993065]
[1755790718603,0.02,4274.8,4273.7,4.106]
[1755790718806,0.02,4274.8,4273.7,6.44588813]
[1755790719043,0.02,4274.8,4273.8,5.36323646]
[1755790719203,0.02,4274.8,4273.9,3.0]
[1755790719404,0.02,4274.8,4274.0,2.36307766]
[1755790719635,0.02,4274.8,4274.3,2.33955936]
[1755790719840,0.02,4274.8,4274.4,0.02339509]
[1755790720109,0.02,4274.8,4274.5,4.105]
[1755790720533,0.02,4274.8,4274.6,0.023394]
[1755790720742,0.75,4274.7,4274.1,1.8]
[1755790720965,0.75,4274.7,4274.1,5.903]
[1755790721167,0.02,4274.8,4274.1,5.903]
[1755790721168,0.02,4274.8,4274.2,0.02339619]
[1755790721541,0.02,4274.8,4274.3,0.82661153]
[1755790721737,0.02,4274.8,4274.5,2.33942915]
[1755790721928,0.02,4274.8,4274.7,5.64444545]
[1755790722351,0.02,4274.8,4274.7,6.76204545]
[1755790724584,0.02,4274.8,4274.7,4.4227]
[1755790724867,0.02,4274.8,4274.7,6.7854389]
[1755790725070,0.02,4274.8,4274.7,4.4227]
[1755790725243,0.02,4274.8,4274.7,6.7854389]
[1755790725432,0.02,4274.8,4274.7,7.85108934]
[1755790726069,0.02,4274.8,4274.7,5.51174389]
[1755790726252,0.02,4274.8,4274.1,1.8]
[1755790726451,0.02,4274.8,4274.2,4.099]
[1755790726844,0.3065,4274.3,4273.5,1.8]
[1755790727076,0.3065,4274.3,4273.6,4.099]
[1755790727567,0.75,4274.3,4273.6,4.099]
[1755790728776,0.3065,4274.3,4273.6,4.099]
[1755790728985,0.02,4274.8,4273.7,0.02339892]
[1755790729283,0.02,4274.8,4273.8,0.02339838]
[1755790729637,0.02,4274.8,4273.8,0.68339838]
[1755790729843,0.02,4274.8,4273.9,0.4576]
[1755790730037,0.02,4274.8,4274.1,3.0]
[1755790730679,0.02,4274.8,4274.0,7.098]
[1755790730847,0.02,4274.8,4274.1,3.0]
[1755790731054,0.02,4274.8,4274.2,2.3630143]
[1755790731365,0.02,4274.8,4274.0,4.098]
[1755790731749,0.02,4274.8,4274.1,0.02339673]
[1755790733071,0.02,4274.8,4274.0,4.098]
[1755790733442,0.02,4274.8,4273.2,0.4576]
[1755790733443,0.3065,4274.1,4273.0,1.8]
[1755790733638,0.3065,4274.1,4273.1,4.102]
[1755790734068,0.4435,4274.0,4273.1,4.102]
[1755790734247,0.3065,4273.4,4273.1,4.102]
[1755790735064,0.4435,4274.0,4273.1,4.102]
[1755790735553,0.4435,4274.7,4273.2,0.02340166]
[1755790735755,0.4435,4274.7,4273.1,4.102]
[1755790736474,0.4435,4274.7,4273.8,0.001]
[1755790738042,0.3065,4273.9,4273.8,0.001]
[1755790739373,0.4435,4274.7,4273.8,0.001]
[1755790740457,0.3065,4273.9,4273.8,0.001]
[1755790740881,0.0212,4274.8,4273.8,0.001]
[1755790741083,0.3065,4273.9,4273.8,0.001]
[1755790741292,0.75,4273.9,4273.8,0.001]
[1755790742584,0.3065,4273.9,4273.8,0.001]
[1755790742890,0.50173849,4274.7,4273.8,0.001]
[1755790743189,0.0212,4274.8,4273.8,0.001]
[1755790744894,0.4435,4274.7,4273.8,0.001]
[1755790745767,0.0212,4274.8,4273.8,0.001]
[1755790746183,0.0212,4274.8,4273.9,0.02339783]
[1755790746581,0.0212,4274.8,4273.9,0.48099783]
[1755790746894,0.0212,4274.8,4273.8,0.001]
[1755790746895,0.4435,4274.7,4273.8,0.001]
[1755790747194,0.0762,4274.0,4273.8,0.001]
[1755790748092,0.0212,4274.8,4273.8,0.001]
[1755790748293,0.0212,4274.8,4273.9,0.3152]
[1755790748690,0.0212,4274.8,4274.0,0.02339728]
[1755790749563,0.0212,4274.8,4273.9,0.02339783]
[1755790750212,0.0212,4274.8,4273.9,0.30549166]
[1755790750417,0.0212,4274.8,4273.9,2.64524517]
[1755790750585,0.0212,4274.8,4274.0,1.8]
[1755790750784,0.0212,4274.8,4274.1,0.02339673]
[1755790751373,0.0212,4274.8,4274.2,0.4566]
[1755790751569,0.0212,4274.8,4274.3,0.02339564]
[1755790751804,0.0212,4274.8,4274.4,0.02339509]
[1755790752007,0.0212,4274.8,4274.7,0.3152]
[1755790752514,0.0212,4274.8,4274.7,0.7718]
[1755790752711,0.0212,4274.8,4274.2,3.89998602]
[1755790752712,0.0212,4274.8,4274.2,0.89998602]
[1755790753173,0.0212,4274.8,4274.1,0.4566]
[1755790753505,0.0212,4274.8,4274.0,1.8]
[1755790753723,0.306,4274.2,4273.4,1.8]
[1755790754012,0.4354,4274.1,4273.3,0.001]
[1755790754196,0.306,4273.9,4273.3,0.001]
[1755790754580,0.7414,4273.9,4273.3,0.001]
[1755790755576,0.306,4273.9,4273.3,0.17721623]
[1755790755781,0.7414,4273.9,4273.3,0.17721623]
[1755790756326,0.306,4273.9,4273.3,0.17721623]
[1755790756482,0.7414,4273.9,4273.3,0.17721623]
[1755790756809,0.4354,4274.5,4273.3,0.17721623]
[1755790756977,0.52354,4274.4,4273.3,0.17721623]
[1755790757418,0.306,4273.9,4273.3,0.17721623]
[1755790757926,0.52354,4274.4,4273.3,0.17721623]
[1755790759197,1.8,4274.7,4273.8,0.4576]
[1755790759395,0.1,4275.0,4273.8,0.4576]
[1755790760029,0.1,4275.0,4273.8,0.48099838]
[1755790760233,0.1,4275.0,4273.8,0.4576]
[1755790760566,0.1,4275.0,4273.9,0.02339783]
[1755790760720,0.1,4275.0,4274.0,0.4566]
[1755790761240,0.4354,4274.9,4274.1,0.02339673]
[1755790761441,0.0848,4274.2,4273.8,0.001]
[1755790762711,3.1,4275.0,4273.8,0.001]
[1755790762938,3.1,4275.0,4273.9,0.4566]
[1755790762939,0.78686,4274.8,4273.9,0.4566]
[1755790763255,0.78686,4274.8,4273.8,0.001]
[1755790763256,0.0212,4274.8,4273.8,0.001]
[1755790763933,0.0212,4274.8,4273.8,0.4576]
[1755790764233,0.0212,4274.8,4273.9,0.02339783]
[1755790764547,0.0212,4274.8,4273.8,0.4576]
[1755790764742,0.0212,4274.8,4273.8,0.001]
[1755790764743,0.0204,4274.8,4273.8,0.001]
[1755790765111,0.4354,4274.7,4273.8,0.001]
[1755790765648,0.33244,4274.8,4273.8,0.001]
[1755790765812,0.0204,4274.8,4273.8,0.001]
[1755790766011,0.0204,4274.8,4273.9,0.4566]
[1755790766214,0.0204,4274.8,4273.8,0.001]
[1755790766663,0.0204,4274.8,4273.8,0.4576]
[1755790767014,0.0204,4274.8,4273.9,1.8]
[1755790767753,0.0204,4274.8,4274.0,0.02339728]
[1755790767928,0.0204,4274.8,4273.9,2.02576]
[1755790769941,0.0204,4274.8,4273.9,1.8]
[1755790771364,0.306,4274.0,4273.8,0.001]
[1755790773661,0.4354,4273.9,4273.8,0.001]
[1755790773830,0.7414,4273.9,4273.8,0.001]
[1755790774751,3.7414,4273.9,4273.8,0.001]
[1755790774933,3.0,4273.8,4273.3,0.001]
[1755790775135,17.51135293,4273.4,4273.3,0.001]
[1755790775463,17.51135293,4273.4,4272.9,0.001]
[1755790775464,19.31135293,4273.4,4272.9,0.001]
[1755790775645,3.66,4272.8,4271.8,0.02]
[1755790775830,0.306,4271.9,4271.8,0.02]
[1755790776034,1.99113529,4271.9,4271.8,0.02]
[1755790776467,2.42653529,4271.9,4271.8,0.02]
[1755790776678,9.52453529,4271.9,4271.8,0.02]
[1755790776830,5.42653529,4271.9,4271.8,0.02]
[1755790777039,1.68513529,4271.9,4271.8,0.02]
[1755790777239,0.4354,4272.7,4271.8,0.02]
[1755790777240,3.4354,4272.7,4271.8,0.02]
[1755790777459,7.5404,4272.7,4271.8,0.02]
[1755790777664,3.4354,4272.7,4271.8,0.02]
[1755790777861,3.0,4272.5,4271.8,0.02]
[1755790778063,1.8,4272.8,4271.8,0.02]
[1755790778249,0.18,4272.7,4271.9,0.4515]
[1755790778450,0.4496,4273.3,4271.9,0.4515]
[1755790778663,1.8,4273.6,4271.9,0.4515]
[1755790778864,4.107,4273.5,4272.0,0.02340823]
[1755790779045,5.907,4273.6,4272.1,0.4515]
[1755790779242,0.5907,4273.5,4272.2,0.02340714]
[1755790779558,0.5907,4273.5,4272.3,0.4515]
[1755790779760,0.5907,4273.5,4272.4,0.02340604]
[1755790779949,1.8,4273.6,4272.5,0.4515]
[1755790780274,4.105,4274.0,4273.4,0.3057]
[1755790780438,4.8,4274.5,4273.4,0.3057]
[1755790780638,0.02,4273.8,4272.9,0.4515]
[1755790780840,0.02,4273.8,4272.5,1.8]
[1755790781580,0.02,4273.8,4272.6,0.47490495]
[1755790781779,0.02,4273.8,4272.6,0.93646058]
[1755790782160,0.02,4273.8,4272.6,0.02340495]
[1755790782358,0.02,4273.8,4272.7,0.4515]
[1755790782668,0.02,4273.8,4272.8,0.02340385]
[1755790783086,0.02,4273.8,4272.9,0.4515]
[1755790783265,0.02,4273.8,4273.0,0.02340276]
[1755790783584,0.02,4273.8,4273.1,0.4515]
[1755790783972,0.02,4273.8,4273.7,0.3057]
[1755790784582,0.02,4273.8,4273.7,0.7572]
[1755790785451,0.02,4273.8,4273.0,0.4515]
[1755790786290,0.02,4273.8,4273.0,0.62835609]
[1755790786600,0.02,4273.8,4273.6,0.001]
[1755790786951,0.2881,4273.7,4273.6,0.001]
[1755790787854,0.7377,4273.7,4273.6,0.001]
[1755790788594,0.2873,4273.7,4273.6,0.001]
[1755790788798,0.02,4273.8,4273.6,0.001]
[1755790788999,0.2881,4273.7,4273.6,0.001]
[1755790789170,0.7377,4273.7,4273.6,0.001]
[1755790789862,0.54387,4273.7,4273.6,0.001]
[1755790790174,0.99347,4273.7,4273.6,0.001]
[1755790790373,0.54387,4273.7,4273.6,0.001]
[1755790790783,0.99347,4273.7,4273.6,0.001]
[1755790791173,0.54387,4273.7,4273.6,0.001]
[1755790792304,0.25577,4273.7,4273.6,0.001]
[1755790795211,0.02,4273.8,4273.6,0.001]
[1755790795407,0.2881,4273.7,4273.6,0.001]
[1755790795719,0.02,4273.8,4273.6,0.001]
[1755790795888,0.2881,4273.7,4273.6,0.001]
[1755790796096,0.02,4273.8,4273.6,0.001]
[1755790797314,0.7377,4273.7,4273.6,0.001]
[1755790797525,39.6367,4273.7,4273.6,0.001]
[1755790797692,42.65883963,4273.7,4273.6,0.001]
[1755790798780,43.50367502,4273.7,4273.6,0.001]
[1755790799204,39.40467502,4273.7,4273.6,0.001]
[1755790799590,12.65883963,4273.7,4273.6,0.001]
[1755790799790,2.36213963,4273.7,4273.6,0.001]
[1755790799999,0.02,4273.8,4273.6,0.001]
[1755790801386,0.2881,4273.7,4273.6,0.001]
[1755790801830,0.02,4273.8,4273.6,0.001]
[1755790802026,0.02,4273.8,4273.7,0.3057]
[1755790802323,0.02,4273.8,4273.7,0.7572]
[1755790802629,0.02,4273.8,4273.6,0.001]
[1755790803026,0.02,4273.8,4273.7,0.7572]
[1755790803392,0.022,4273.8,4273.6,0.001]
[1755790804626,1.0002,4273.7,4273.6,0.001]
[1755790804927,1.4498,4273.7,4273.6,0.001]
[1755790805311,2.1098,4273.7,4273.6,0.001]
[1755790805526,8.0992,4273.7,4273.6,0.001]
[1755790806126,4.0002,4273.7,4273.6,0.001]
[1755790806326,8.0992,4273.7,4273.6,0.001]
[1755790806488,3.7121,4273.7,4273.6,0.001]
[1755790806689,7.099,4273.7,4273.6,0.001]
[1755790806933,3.0,4273.7,4273.6,0.001]
[1755790807227,0.022,4273.8,4273.6,0.7582]
[1755790807436,0.022,4273.8,4273.6,0.3067]
[1755790807808,0.022,4273.8,4273.7,0.4348]
[1755790808012,0.022,4273.8,4273.7,0.733]
[1755790809536,0.022,4273.8,4273.6,0.001]
[1755790809909,0.022,4273.8,4273.7,0.733]
[1755790810731,0.022,4273.8,4273.7,0.2982]
[1755790811238,0.022,4273.8,4273.6,0.001]
[1755790812154,0.0212,4273.8,4273.6,0.001]
[1755790813629,0.32332,4273.8,4273.6,0.001]
[1755790814250,0.0876,4273.7,4273.6,0.001]
[1755790814758,3.0876,4273.7,4273.6,0.001]
[1755790814982,3.87575721,4273.7,4273.6,0.001]
[1755790815276,5.03592427,4273.7,4273.6,0.001]
[1755790815483,13.36510104,4273.7,4273.6,0.001]
[1755790815765,41.02520821,4273.7,4273.6,0.001]
[1755790816128,0.66,4273.2,4271.8,0.02]
[1755790816376,19.86948083,4272.8,4271.8,0.02]
[1755790816531,17.21359514,4271.9,4271.8,0.02]
[1755790816845,55.99520501,4271.9,4271.8,0.02]
[1755790817054,56.43960501,4271.9,4271.8,0.02]
[1755790817358,55.93992494,4271.9,4271.8,0.02]
[1755790817543,55.93969116,4271.9,4271.8,0.02]
[1755790818142,55.71076654,4271.9,4271.8,0.02]
[1755790818829,51.49485465,4271.9,4271.8,0.02]
[1755790819054,55.59285465,4271.9,4271.8,0.02]
[1755790820355,55.59385465,4271.9,4271.8,0.02]
[1755790820554,51.49485465,4271.9,4271.8,0.02]
[1755790820751,55.59385465,4271.9,4271.8,0.02]
[1755790821673,55.14945465,4271.9,4271.8,0.021]
[1755790822030,37.49685951,4271.9,4271.8,0.021]
[1755790822331,41.59585951,4271.9,4271.8,0.021]
[1755790822561,36.83685951,4271.9,4271.8,0.021]
[1755790822759,5.899,4271.9,4271.8,0.3192]
[1755790823077,4.099,4271.9,4271.8,0.754]
[1755790823562,0.66,4272.5,4271.8,0.754]
[1755790823768,3.0,4272.3,4271.8,0.3192]
[1755790824058,3.0,4272.3,4271.8,0.021]
[1755790824250,0.7099,4272.2,4271.8,0.021]
[1755790824447,3.0,4272.0,4271.8,0.021]
[1755790826248,0.0656,4271.9,4271.8,0.021]
[1755790826831,3.7099,4272.2,4271.8,0.021]
[1755790827031,3.0,4272.0,4271.8,0.021]
[1755790827230,1.08089,4271.9,4271.8,0.021]
[1755790827427,1.39639,4271.9,4271.8,0.021]
[1755790827866,2.24959,4271.9,4271.8,0.021]
[1755790828053,1.08089,4271.9,4271.8,0.021]
[1755790828253,4.099,4271.9,4271.8,0.021]
[1755790828562,3.7099,4272.2,4271.8,0.021]
[1755790828865,4.099,4272.1,4271.8,0.021]
[1755790829268,3.0,4271.9,4271.8,0.021]
[1755790829565,4.099,4271.9,4271.8,0.3192]
[1755790829734,0.55389754,4273.1,4271.8,0.3192]
[1755790829735,0.03,4272.6,4271.8,15.67379514]
[1755790829928,0.002,4273.7,4271.9,5.22737951]
[1755790830132,0.002,4273.7,4273.6,0.2982]
[1755790830865,0.002,4273.7,4273.6,0.733]
[1755790831975,0.002,4273.7,4272.8,0.4348]
[1755790832137,0.002,4273.7,4272.4,1.801]
[1755790832338,4.40132,4273.6,4272.6,0.4348]
[1755790832755,4.40132,4273.6,4272.1,0.4348]
[1755790832968,3.0,4273.5,4272.1,0.4348]
[1755790833282,0.66,4273.2,4271.8,0.021]
[1755790833575,30.66,4273.4,4271.8,0.021]
[1755790833576,3.0,4272.7,4271.8,0.021]
[1755790833733,3.0,4272.5,4271.8,0.021]
[1755790834438,4.099,4272.9,4272.4,0.2982]
[1755790834747,4.1202,4273.8,4272.5,0.4582055]
[1755790834957,4.1202,4273.8,4272.5,0.4348]
[1755790835160,0.0212,4273.8,4272.5,0.4348]
[1755790835356,0.0212,4273.8,4273.6,0.2982]
[1755790835881,0.0212,4273.8,4273.6,0.733]
[1755790836080,0.0012,4273.7,4273.6,0.91072746]
[1755790836589,0.0012,4273.7,4273.1,0.4348]
[1755790837069,0.0012,4273.7,4273.6,0.2982]
[1755790837986,0.41324,4273.7,4272.4,1.801]
[1755790838166,0.41324,4273.7,4272.6,0.4575]
[1755790838370,0.41324,4273.7,4273.6,0.3116]
[1755790838680,0.0012,4273.7,4273.6,0.3116]
[1755790838881,0.0012,4273.7,4273.0,0.4575]
[1755790840094,0.0012,4273.7,4273.6,0.3116]
[1755790840484,0.0012,4273.7,4273.6,0.7691]
[1755790841694,0.0012,4273.7,4273.6,3.76904758]
[1755790842000,0.0212,4273.8,4273.7,5.99989283]
[1755790842201,0.0212,4273.8,4273.7,1.4291]
[1755790842365,0.0212,4273.8,4273.7,3.79239175]
[1755790842581,0.0212,4273.8,4273.7,1.4291]
[1755790842921,0.0212,4273.8,4273.7,0.7691]
[1755790843883,0.0212,4273.8,4273.7,2.06575405]
[1755790844088,0.0212,4273.8,4273.7,2.04235513]
[1755790845200,0.0212,4273.8,4273.7,7.38224796]
[1755790845406,0.0212,4273.8,4273.7,5.04235513]
[1755790846143,0.0212,4273.8,4273.7,1.38235513]
[1755790846344,0.0212,4273.8,4273.7,0.7691]
[1755790847027,0.0212,4273.8,4273.7,3.10899283]
[1755790847224,0.0212,4273.8,4273.7,6.13239175]
[1755790847429,0.0212,4273.8,4273.7,6.10899283]
[1755790848641,0.0212,4273.8,4273.7,6.76899283]
[1755790848813,0.0212,4273.8,4273.7,8.08959214]
[1755790849215,0.0212,4273.8,4273.7,8.20639214]
[1755790849618,0.0212,4273.8,4273.7,8.08959214]
[1755790850010,0.0212,4273.8,4273.7,9.18569931]
[1755790850237,0.0212,4273.8,4273.7,7.8651]
[1755790850437,0.0212,4273.8,4273.7,0.7691]
[1755790850645,0.0212,4273.8,4273.7,4.4076]
[1755790850956,0.0212,4273.8,4273.7,4.8651]
[1755790851418,0.0212,4273.8,4273.7,4.4076]
[1755790851607,0.0212,4273.8,4273.7,4.096]
[1755790851808,0.0212,4273.8,4273.3,0.02340111]
[1755790852031,0.1244,4273.8,4273.2,1.8]
[1755790852842,0.1244,4273.8,4273.3,0.02340111]
[1755790853067,0.0212,4273.8,4273.3,0.02340111]
[1755790854033,0.0212,4273.8,4273.2,5.895]
[1755790856343,0.0212,4273.8,4273.2,4.095]
[1755790856540,0.1032,4273.3,4273.0,0.17849056]
[1755790856770,0.1032,4273.3,4272.9,4.095]
[1755790857349,0.0212,4273.8,4272.9,4.095]
[1755790857547,0.0212,4273.8,4273.0,0.4575]
[1755790858676,0.0212,4273.8,4273.7,0.3116]
[1755790858981,0.0212,4273.8,4273.7,4.4066]
[1755790859153,0.0212,4273.8,4273.7,4.88749892]
[1755790859366,0.0212,4273.8,4273.7,4.8641]
[1755790859690,0.0212,4273.8,4273.7,9.42450765]
[1755790859992,0.0204,4273.8,4273.7,11.76440048]
[1755790860196,0.0204,4273.8,4273.7,9.42450765]
[1755790860374,0.0204,4273.8,4273.7,11.76440048]
[1755790860679,0.0204,4273.8,4273.7,9.42450765]
[1755790861885,0.0204,4273.8,4273.7,4.095]
[1755790862253,0.0204,4273.8,4273.7,10.22739175]
[1755790862461,0.0204,4273.8,4273.7,7.8641]
[1755790862762,0.0204,4273.8,4273.7,8.5241]
[1755790863276,0.0204,4273.8,4273.7,0.7691]
[1755790863584,0.0204,4273.8,4273.7,4.095]
[1755790863788,0.0204,4273.8,4273.4,1.8]
[1755790864100,0.0204,4273.8,4273.5,4.11840002]
[1755790864271,0.0204,4273.8,4273.7,0.3116]
[1755790864455,0.0204,4273.8,4273.4,1.8]
[1755790864783,0.0204,4273.8,4273.5,4.095]
[1755790864990,0.2902,4273.5,4272.9,0.17225551]
[1755790865210,0.0204,4273.8,4273.0,4.11840276]
[1755790865589,0.0204,4273.8,4273.0,4.095]
[1755790865911,0.0204,4273.8,4273.1,0.02340221]
[1755790866207,0.0204,4273.8,4273.0,4.73035]
[1755790866810,0.0204,4273.8,4273.1,0.02340221]
[1755790866986,0.0204,4273.8,4273.7,0.3116]
[1755790867183,0.0204,4273.8,4273.7,4.8641]
[1755790867523,0.0204,4273.8,4273.7,5.53051]
[1755790868894,0.0204,4273.8,4273.7,4.095]
[1755790869518,0.0246,4273.8,4273.6,1.8]
[1755790869731,0.0204,4273.8,4273.7,4.095]
[1755790869899,0.0204,4273.8,4273.7,4.41819892]
[1755790870102,0.0204,4273.8,4273.7,4.3948]
[1755790870415,0.0204,4273.8,4273.7,4.41819892]
[1755790870577,0.0204,4273.8,4273.7,5.48731989]
[1755790870785,0.0204,4273.8,4273.7,6.14731989]
[1755790871210,0.0204,4273.8,4273.7,9.14731989]
[1755790871721,0.0204,4273.8,4273.7,8.48731989]
[1755790871923,0.0204,4273.8,4273.6,1.8]
[1755790872223,0.0204,4273.8,4273.7,4.095]
[1755790872381,0.0204,4273.8,4273.0,0.4707]
[1755790872382,0.3045,4273.7,4273.0,1.8]
[1755790872586,0.3045,4273.7,4273.1,4.11840221]
[1755790872790,0.3045,4273.7,4273.0,1.8]
[1755790873009,0.3045,4273.7,4273.1,4.095]
[1755790873778,0.3045,4273.7,4273.2,4.094]
[1755790874010,0.3045,4273.7,4273.0,1.8]
[1755790874198,0.4683,4273.6,4273.0,1.8]
[1755790874398,0.3045,4273.1,4273.0,1.8]
[1755790874615,0.3045,4273.1,4273.0,5.894]
[1755790874819,0.3045,4273.1,4272.9,4.26832531]
[1755790874820,0.7728,4273.1,4272.9,4.26832531]
[1755790875001,0.4683,4273.0,4272.8,0.001]
[1755790875204,0.3045,4272.9,4272.8,0.001]
[1755790875418,0.7728,4272.9,4272.8,0.001]
[1755790875584,0.3045,4272.9,4272.8,0.001]
[1755790876113,0.4683,4273.6,4272.8,0.001]
[1755790876317,0.7728,4272.9,4272.8,0.001]
[1755790878000,0.3045,4272.9,4272.8,0.001]
[1755790878219,0.7728,4272.9,4272.8,0.001]
[1755790879517,0.3045,4272.9,4272.8,0.001]
[1755790879921,0.4683,4273.5,4272.8,0.001]
[1755790880124,0.3045,4272.9,4272.8,0.001]
[1755790880512,0.4683,4273.5,4272.8,0.001]
[1755790881107,0.0204,4273.8,4272.8,0.001]
[1755790881512,0.0204,4273.8,4272.9,4.5891033]
[1755790881713,0.0204,4273.8,4273.0,0.45911033]
[1755790882550,0.0204,4273.8,4272.9,4.095]
[1755790882848,0.0204,4273.8,4273.0,4.11840276]
[1755790883013,0.0204,4273.8,4273.0,4.58910276]
[1755790883211,0.0204,4273.8,4272.8,0.001]
[1755790883545,0.0196,4273.8,4273.1,4.095]
[1755790885207,0.0196,4273.8,4273.2,0.02340166]
[1755790885408,0.0196,4273.8,4273.1,4.095]
[1755790886301,0.0047,4273.2,4272.8,0.001]
[1755790886957,0.4675,4273.2,4272.8,0.001]
[1755790887242,0.4628,4273.1,4272.8,0.001]
[1755790887446,0.0093,4272.9,4272.8,0.001]
[1755790888442,0.4675,4273.5,4272.8,0.001]
[1755790889056,0.0196,4273.8,4272.8,0.001]
[1755790889204,0.0196,4273.8,4272.8,0.49510385]
[1755790889407,0.0196,4273.8,4272.9,4.095]
[1755790889922,0.4675,4273.7,4272.8,0.001]
[1755790890700,0.0047,4272.9,4272.8,0.001]
[1755790891096,0.4675,4272.9,4272.8,0.001]
[1755790891396,17.01066757,4272.9,4272.8,0.001]
[1755790891551,18.71173433,4272.9,4272.8,0.001]
[1755790892099,19.37173433,4272.9,4272.8,0.001]
[1755790892590,23.46673433,4272.9,4272.8,0.001]
[1755790892952,4.70576676,4272.9,4272.8,0.001]
[1755790893282,3.473,4272.9,4272.8,0.001]
[1755790894088,3.0,4272.9,4272.8,0.001]
[1755790894847,14.01146757,4273.5,4272.8,0.001]
[1755790894848,4.095,4273.3,4272.8,0.001]
[1755790895053,1.8,4273.6,4272.8,0.7715]
[1755790895274,0.0196,4273.8,4272.8,0.7715]
[1755790895575,0.45829,4273.7,4272.8,0.3008]
[1755790896168,0.45829,4273.7,4272.8,0.001]
[1755790897559,3.45829,4273.7,4272.8,0.001]
[1755790897896,0.45829,4273.7,4272.8,0.001]
[1755790898095,0.0196,4273.8,4272.8,0.45600385]
[1755790898296,0.0196,4273.8,4272.8,0.4326]
[1755790900760,0.0196,4273.8,4272.8,0.001]
[1755790900987,3.0,4273.6,4272.8,0.001]
[1755790901583,0.0196,4273.8,4272.9,0.4316]
[1755790901901,0.0196,4273.8,4273.5,0.3082]
[1755790902101,0.0196,4273.8,4273.6,0.02339947]
[1755790902302,0.0196,4273.8,4273.7,0.7398]
[1755790904604,0.0196,4273.8,4273.7,1.05012465]
[1755790904769,0.0196,4273.8,4273.7,1.07352357]
[1755790905568,0.0196,4273.8,4273.7,3.4134164]
[1755790905775,0.0196,4273.8,4273.7,1.07352357]
[1755790905987,0.0196,4273.8,4273.7,0.76319892]
[1755790906507,0.0196,4273.8,4273.7,6.76309175]
[1755790906696,0.0196,4273.8,4273.7,4.3998]
[1755790907275,0.0188,4273.8,4273.7,8.4938]
[1755790908378,0.0188,4273.8,4273.7,4.3998]
[1755790908706,0.0188,4273.8,4273.7,9.1677826]
[1755790909416,0.0188,4273.8,4273.7,8.5077826]
[1755790910313,0.0188,4273.8,4273.7,11.50767543]
[1755790910513,0.0188,4273.8,4273.7,11.62447543]
[1755790910810,0.0188,4273.8,4273.7,13.05447543]
[1755790911779,0.0188,4273.8,4273.7,11.62447543]
[1755790912685,0.0188,4273.8,4273.7,11.71824943]
[1755790912991,0.002,4274.2,4274.1,2.99967384]
[1755790913212,0.002,4274.2,4274.1,22.5083807]
[1755790913382,0.002,4274.2,4274.1,23.03338397]
[1755790913588,0.002,4274.2,4274.1,13.76217056]
[1755790915117,0.002,4274.2,4274.1,27.30533813]
[1755790915293,0.002,4274.2,4274.1,16.22817056]
[1755790915499,0.002,4274.2,4274.1,13.76117056]
[1755790917588,0.002,4274.2,4274.1,9.66917056]
[1755790917780,0.002,4274.2,4274.1,13.76117056]
[1755790920730,0.002,4274.2,4274.1,9.23757056]
[1755790920899,0.002,4274.2,4274.1,1.97895416]
[1755790921219,0.002,4274.2,4274.1,8.409628]
[1755790921408,0.002,4274.2,4274.1,12.149428]
[1755790921609,0.002,4274.2,4274.1,12.809428]